{"text_format":"1","workbook":"xlsx","n_sheets":2,"sheets":["Chart1","HourlySummary"],"not_rendered":{"charts":3,"images":1,"macros":1,"external_links":0,"defined_names":0,"comments":0,"pivot_tables":0},"unopened":[{"sheet":"Chart1","index":0,"reason":"not_a_worksheet"}],"bounds":{"document_bytes":16777216,"sheet_cells":100000,"rows_first":2000,"rows_last":500,"rows_between":2000,"halvings":0,"cell_chars":16384,"cell_head_chars":4096},"cells_cut":0,"cells_raw":0,"read":"whole","date_system":"1900"}

{"sheet":"HourlySummary","index":1,"n_rows":25,"n_cols":14,"rows_kept":25,"cut":false,"hidden":false,"merged":[]}
[null,null,null,null,null,null,null,null,null,null,null,null,"Hour","Mounts"]
[null,null,null,null,null,null,null,null,null,null,null,null,0,16189]
[null,null,null,null,null,null,null,null,null,null,null,null,{"$f":"M2+1","v":1},13006]
[null,null,null,null,null,null,null,null,null,null,null,null,{"$f":"M3+1","v":2},10012]
[null,null,null,null,null,null,null,null,null,null,null,null,3,10549]
[null,null,null,null,null,null,null,null,null,null,null,null,4,9545]
[null,null,null,null,null,null,null,null,null,null,null,null,5,9138]
[null,null,null,null,null,null,null,null,null,null,null,null,6,13788]
[null,null,null,null,null,null,null,null,null,null,null,null,7,16778]
[null,null,null,null,null,null,null,null,null,null,null,null,8,17615]
[null,null,null,null,null,null,null,null,null,null,null,null,9,12445]
[null,null,null,null,null,null,null,null,null,null,null,null,10,15134]
[null,null,null,null,null,null,null,null,null,null,null,null,11,15845]
[null,null,null,null,null,null,null,null,null,null,null,null,12,21585]
[null,null,null,null,null,null,null,null,null,null,null,null,13,18048]
[null,null,null,null,null,null,null,null,null,null,null,null,14,16071]
[null,null,null,null,null,null,null,null,null,null,null,null,15,16999]
[null,null,null,null,null,null,null,null,null,null,null,null,16,11631]
[null,null,null,null,null,null,null,null,null,null,null,null,17,17146]
[null,null,null,null,null,null,null,null,null,null,null,null,18,35562]
[null,null,null,null,null,null,null,null,null,null,null,null,19,21471]
[null,null,null,null,null,null,null,null,null,null,null,null,20,13987]
[null,null,null,null,null,null,null,null,null,null,null,null,21,17724]
[null,null,null,null,null,null,null,null,null,null,null,null,22,16748]
[null,null,null,null,null,null,null,null,null,null,null,null,23,17450]